[Event "10th Floripa Open 2024"]
[Site "Florianopolis"]
[Date "2024.01.23"]
[Round "4.1"]
[White "Cunha, Lucas Aguiar"]
[Black "Tari, Aryan"]
[Result "0-1"]
[ECO "B12"]
[WhiteElo "2230"]
[BlackElo "2623"]
[Annotator "TA"]
[PlyCount "42"]
[EventDate "2024.01.10"]
[EventType "swiss"]
[EventCountry "BRA"]
[SourceTitle "playchess.com"]
[Source "ChessBase"]
[SourceQuality "1"]
[TimeControl "5400+30"]

{[%evp 10,42,27,16,50,35,30,9,11,12,17,-23,-16,-14,-11,-60,-52,-178,-170,-256,-241,-262,-261,-245,-246,-295,-304,-577,-556,-728,-710,-29994,-29995,-29998,-29999]} 1. e4 {[%emt 0:03:48]} c6 {[%emt 0:00:08]} 2. d4 {[%emt 0:00:14]} d5 {[%emt 0:00:06]} 3. e5 {[%emt 0:01:10]} Bf5 {[%emt 0:00:17]} 4. Nf3 {[%emt 0:00:08]} e6 {[%emt 0:00:09]} 5. Be2 {[%emt 0:00:04]} Nd7 {[%emt 0:00:13]} 6. O-O {[%emt 0:00:08]} a5 {[%emt 0:00:03] B12: Caro-Kann: Advance Variation.} 7. a4 {[%emt 0:00:13]} f6 {[%emt 0:00:06]} 8. c4 {[%emt 0:06:03]} fxe5 {[%emt 0:00:42] The position is equal.} 9. dxe5 {[%emt 0:00:08]} Bc5 {[%emt 0:00:18]} 10. cxd5 {[%emt 0:01:18]} exd5 {[%emt 0:05:35]} 11. Nd4 {[%emt 0:00:27]} Ne7 {[%emt 0:03:29] [#]} 12. Nxf5 $146 {[%emt 0:09:32]} (12. g4 $11 Bxb1 13. Rxb1) ({Predecessor:} 12. g4 Bxb1 13. Rxb1 Nxe5 14. Ne6 Qd6 15. Nxc5 Qxc5 16. b4 axb4 17. Bb2 N7g6 18. Rc1 {0-1 Atabayev,S (2433)-Daneshvar,B (2555) Asian Continental op 20th 2023 (3)}) 12... Nxf5 $15 {[%emt 0:00:10]} 13. Bd3 {[%emt 0:00:43] [#]} ({Better is} 13. Kh1 $15) 13... O-O $1 $19 {[%emt 0:08:35] And now ...Qh4 would win.} 14. e6 {[%emt 0:02:28]} ({Wrong is} 14. Qh5 $2 g6 15. Qh3 Nxe5 $19) (14. Bf4 {was necessary.}) 14... Ne5 {[%emt 0:01:09] Hoping for ...Qh4.} 15. Bxf5 {[%emt 0:17:24]} Rxf5 {[%emt 0:00:06]} 16. Qc2 {[%emt 0:00:05]} Qf8 {[%emt 0:02:01][%cal Oe5d3] White must now prevent ...Nd3!} 17. Nc3 {[%emt 0:00:41]} Re8 {[%emt 0:08:46]} 18. Be3 $2 {[%emt 0:00:56]} (18. e7 {only move.} Rxe7 19. Nxd5 Nf3+ 20. gxf3 Rxd5 21. f4) 18... d4 {[%emt 0:00:29][%cal Bd5d4,Bd4e3][%mdl 32]} (18... Rxe6 $2 {too greedy.} 19. Ne2 (19. Bxc5 {is a self mate.} Nf3+ 20. Kh1 Rh5) 19... Bxe3 20. fxe3 Rxf1+ 21. Rxf1 $19) 19. Ne4 {[%emt 0:00:30]} dxe3 {[%emt 0:00:19]} 20. Nxc5 {[%emt 0:00:34] [#]} Nf3+ $1 {[%emt 0:00:11][%mdl 512]} 21. gxf3 {[%emt 0:00:14]} (21. Kh1 Rh5) 21... Rg5+ {[%emt 0:00:06] Black took control after the opening.   Weighted Error Value: White=0.89/Black=0.02 (flawless)} 0-1

[Event "10th Floripa Open 2024"]
[Site "Florianopolis"]
[Date "2024.01.23"]
[Round "4.2"]
[White "Gattass, Allan"]
[Black "El Debs, Felipe de Cresce"]
[Result "0-1"]
[ECO "B72"]
[WhiteElo "2225"]
[BlackElo "2527"]
[Annotator "TA"]
[PlyCount "100"]
[EventDate "2024.01.10"]
[EventType "swiss"]
[EventCountry "BRA"]
[SourceTitle "playchess.com"]
[Source "ChessBase"]
[SourceQuality "1"]
[TimeControl "5400+30"]

{[%evp 21,100,0,0,-2,-7,-12,-14,-30,-6,-18,-25,-17,-30,-33,-20,-32,-29,-25,-37,-34,-35,-49,-52,-53,-55,-87,-92,-92,-92,-84,-79,-87,-66,-67,-43,-235,-215,-246,-246,-254,-254,-250,-258,-248,-247,-270,-270,-291,-290,-273,-265,-631,-623,-570,-548,-1338,-1289,-1256,-1120,-1105,-1158,-1215,-1133,-2439,-1875,-1867,-1382,-5701,-11351,-7977,-6429,-12829,-2138,-12797,-2479,-12833,-12833,-12837,-12838,-12838,-12839]} 1. e4 {[%emt 0:00:06]} c5 {[%emt 0:00:12]} 2. Nf3 {[%emt 0:00:15]} Nc6 {[%emt 0:00:09]} 3. d4 {[%emt 0:00:14]} cxd4 {[%emt 0:00:05]} 4. Nxd4 {[%emt 0:00:06]} g6 {[%emt 0:00:07]} 5. Nc3 {[%emt 0:00:22]} Bg7 {[%emt 0:00:06]} 6. Be3 {[%emt 0:01:21]} Nf6 {[%emt 0:00:07]} 7. Nb3 {[%emt 0:02:38]} d6 {[%emt 0:01:23]} 8. Be2 {[%emt 0:00:42]} O-O {[%emt 0:00:36]} 9. Qd2 {[%emt 0:02:05]} Be6 {[%emt 0:03:37]} 10. Bh6 {[%emt 0:01:49]} Rc8 {[%emt 0:05:36]} 11. Bxg7 {[%emt 0:00:11]} Kxg7 {[%emt 0:00:04]} 12. O-O {[%emt 0:03:21] B72: Sicilian Dragon: 6 Be3, lines with h3+Bc4 and sidelines.} a6 {[%emt 0:02:33]} 13. f4 {[%emt 0:03:33] [#]} b5 $146 {[%emt 0:03:19]} ({Predecessor:} 13... Qb6+ 14. Kh1 Ng4 15. Bxg4 Bxg4 16. Nd5 Qd8 17. f5 e6 18. f6+ Kh8 19. Ne3 Ne5 20. h3 Nc4 21. Nxc4 Rxc4 22. hxg4 Rxe4 23. Rf3 Rxg4 24. Qh6 {1-0 Offen,N-Schmid,T Schleswig Holstein-chC U18 1993 (8)}) 14. Bf3 {[%emt 0:01:27] The position is equal.} Na5 {[%emt 0:12:43]} 15. Nxa5 {[%emt 0:02:23]} (15. e5 $5 {[%cal Re5f6]} Ng4 16. exd6 Nxb3 17. axb3 Qb6+ 18. Kh1 Qxd6 19. Qxd6 exd6 20. Rfe1 $11 (20. Rxa6 Ne3 $11)) 15... Qxa5 {[%emt 0:00:06]} 16. a3 {[%emt 0:01:16] Wards off Qb4} Rc4 {[%emt 0:04:05]} 17. Qe3 {[%emt 0:06:17][%cal Of4f5]} Qc7 {[%emt 0:02:56]} 18. Be2 {[%emt 0:06:45]} Qc5 {[%emt 0:04:18]} 19. Qxc5 {[%emt 0:02:02]} Rxc5 {[%emt 0:00:04]} 20. Bd3 {[%emt 0:00:39]} Rb8 {[%emt 0:01:27]} 21. Ne2 {[%emt 0:09:33]} Bc4 {[%emt 0:01:10]} 22. Nc3 {[%emt 0:03:05]} a5 {[%emt 0:08:58][%cal Ba6a5,Ba5b4,Bb4c3][%mdl 32]} 23. Rfc1 {[%emt 0:03:36]} b4 {[%emt 0:03:26]} 24. axb4 {[%emt 0:00:52]} axb4 {[%emt 0:00:20]} 25. Na4 {[%emt 0:01:37]} Rc6 {[%emt 0:05:45] Black is more active.} 26. b3 {[%emt 0:00:23]} Bb5 {[%emt 0:00:53]} 27. Nb2 {[%emt 0:00:14]} Bxd3 {[%emt 0:00:35]} (27... Rc7 $5 {[%cal Rb5d3]} 28. e5 dxe5 29. fxe5 Ng4 $17) 28. cxd3 {[%emt 0:01:08] Loses the game.} (28. Nxd3 $15 Nxe4 29. Ra7) 28... Rc3 $19 {[%emt 0:00:08]} 29. Rxc3 {[%emt 0:06:23]} bxc3 {[%emt 0:00:36][%mdl 4096] Endgame KRN-KRN} 30. Nd1 {[%emt 0:00:35]} Rxb3 {[%emt 0:00:28] White must now prevent ...c2.} 31. Rc1 {[%emt 0:00:13] [#] Against c2} c2 {[%emt 0:00:29][%mdl 576] Discovered Attack} 32. Rxc2 {[%emt 0:00:09]} Rxd3 {[%emt 0:00:06]} 33. Nc3 {[%emt 0:00:40]} Re3 {[%emt 0:00:26]} 34. e5 {[%emt 0:01:21]} dxe5 {[%emt 0:00:22]} 35. fxe5 {[%emt 0:00:20]} Rxe5 {[%emt 0:00:07] [#] Threatens to win with ...Rc5.} 36. Re2 $2 {[%emt 0:00:12]} (36. Rb2) 36... Rxe2 {[%emt 0:00:07] Black is clearly winning.} 37. Nxe2 {[%emt 0:00:06] KN-KN} Ne4 {[%emt 0:00:45] Prevents Nc3.} 38. g3 {[%emt 0:00:17]} e5 {[%emt 0:00:09] Wards off Nd4} 39. Kg2 {[%emt 0:00:11]} f5 {[%emt 0:00:11]} 40. Nc1 {[%emt 0:00:20]} Kf6 {[%emt 0:00:18]} 41. Nd3 {[%emt 0:00:04]} Ke6 {[%emt 0:00:16] Strongly threatening ...g5.} 42. h4 {[%emt 0:00:18]} Kd5 {[%emt 0:00:25]} 43. Nb4+ {[%emt 0:00:08]} Kc5 {[%emt 0:00:18]} 44. Nd3+ {[%emt 0:00:07]} Kd4 {[%emt 0:00:24]} 45. Nb4 {[%emt 0:00:02]} Nf6 {[%emt 0:00:22]} 46. Nc6+ {[%emt 0:00:09]} Kd5 {[%emt 0:00:08]} (46... Ke4 $142 47. Kh2 Ng4+ 48. Kh3 Kd3) 47. Nb4+ {[%emt 0:00:26]} Kc5 {[%emt 0:02:13]} (47... Ke4 $142 48. Nc6 f4 49. gxf4 exf4) 48. Nd3+ {[%emt 0:00:07]} Kd4 {[%emt 0:00:08]} 49. Nb4 {[%emt 0:00:03]} Kc3 {[%emt 0:00:32]} 50. Nc6 {[%emt 0:00:05]} e4 {[%emt 0:00:13] Weighted Error Value: White=0.47/Black=0.03 (flawless)} 0-1

[Event "10th Floripa Open 2024"]
[Site "Florianopolis"]
[Date "2024.01.23"]
[Round "4.3"]
[White "Cuenca Jimenez, Jose Fernando"]
[Black "Piccoli, Lucas Fonseca"]
[Result "1-0"]
[ECO "D02"]
[WhiteElo "2514"]
[BlackElo "2263"]
[Annotator "TA"]
[PlyCount "75"]
[EventDate "2024.01.10"]
[EventType "swiss"]
[EventCountry "BRA"]
[SourceTitle "playchess.com"]
[Source "ChessBase"]
[SourceQuality "1"]
[TimeControl "5400+30"]

{[%evp 9,75,0,18,0,0,0,0,0,0,0,40,20,89,94,93,95,103,104,81,27,133,143,132,129,157,162,161,171,170,158,181,178,180,158,465,456,458,436,417,364,368,348,352,348,474,482,482,482,542,535,668,477,443,0,568,558,696,687,673,665,672,672,810,808,779,766,791,739]} 1. d4 {[%emt 0:00:02]} Nf6 {[%emt 0:06:02]} 2. Bf4 {[%emt 0:00:09]} e6 {[%emt 0:00:31]} 3. e3 {[%emt 0:00:54]} c5 {[%emt 0:00:20]} 4. Nf3 {[%emt 0:00:21]} d5 {[%emt 0:01:28]} 5. Nbd2 {[%emt 0:00:10]} Bd6 {[%emt 0:00:24]} 6. Bb5+ {[%emt 0:03:09] D02: 1 d4 d5 2 Nf3 sidelines, including 2...Nf6 3 g3 and 2...Nf6 3 Bf4.} Nc6 $1 {[%emt 0:02:19]} 7. dxc5 {[%emt 0:00:03]} Bxc5 {[%emt 0:00:34]} 8. O-O {[%emt 0:02:29] The position is equal.} O-O {[%emt 0:00:51]} 9. c4 {[%emt 0:00:02] [#]} Nh5 $146 {[%emt 0:06:04]} ({Predecessor:} 9... Be7 10. cxd5 Qxd5 11. Qe2 Bd7 12. e4 Qh5 13. e5 Nd5 14. Bg3 a6 15. Bc4 Nb6 {½-½ Nisipeanu,L (2615)-Forcen Esteban,D (2566) EU-Cup 37th Mayrhofen 2022 (6.5)}) 10. Bg5 {[%emt 0:07:58]} Be7 {[%emt 0:00:58]} (10... f6 $11 11. Bh4 g5) 11. cxd5 $16 {[%emt 0:05:07]} exd5 {[%emt 0:03:38]} 12. Bxc6 {[%emt 0:07:42]} bxc6 {[%emt 0:01:20]} 13. Bxe7 {[%emt 0:00:57]} Qxe7 {[%emt 0:00:07]} 14. Nd4 {[%emt 0:00:33]} ({White should play} 14. Rc1 $16) 14... g6 {[%emt 0:19:21] White now steadily converts the win.} (14... c5 $1 $11 {keeps the balance.}) 15. Nxc6 {[%emt 0:10:13]} Qb7 {[%emt 0:00:08] Black is weak on the dark squares} 16. Qc2 {[%emt 0:02:26] White is more active.} Bf5 {[%emt 0:00:16]} 17. Qc3 {[%emt 0:14:38]} Rac8 {[%emt 0:02:24]} 18. Rfc1 {[%emt 0:02:06]} Rc7 {[%emt 0:02:28] [#] White must now prevent ...Rfc8.} 19. Qb3 {[%emt 0:02:43]} Qxb3 {[%emt 0:18:00]} 20. Nxb3 {[%emt 0:38:48]} ({Not} 20. axb3 Rfc8 21. h3 Rxc6 $15) 20... Rfc8 {[%emt 0:00:05]} 21. Ncd4 {[%emt 0:00:00]} Bc2 $2 {[%emt 0:00:35] [#]} (21... Bd7 $16 22. Rxc7 Rxc7) 22. Nb5 $1 $18 {[%emt 0:00:00]} Re7 {[%emt 0:00:53]} 23. N3d4 {[%emt 0:00:00]} Bf5 {[%emt 0:00:36]} 24. Nxf5 {[%emt 0:00:00] A dynamic duo of knights.} Rxc1+ {[%emt 0:00:07]} 25. Rxc1 {[%emt 0:00:00] Intending Rc8+ and mate.} gxf5 {[%emt 0:00:10][%mdl 4096] Endgame KRN-KRN} 26. Nd4 {[%emt 0:00:00]} Re5 {[%emt 0:02:00]} 27. Rc8+ {[%emt 0:00:00]} Kg7 {[%emt 0:00:09]} 28. g3 {[%emt 0:00:00][%cal Bg2g3,Bg3f4][%mdl 32]} f4 {[%emt 0:02:16]} 29. gxf4 {[%emt 0:00:00]} Re4 {[%emt 0:00:28]} 30. Rc6 {[%emt 0:00:00]} Kf8 {[%emt 0:02:31]} 31. Rc8+ $2 {[%emt 0:00:00]} (31. f5 $18) 31... Ke7 $2 {[%emt 0:01:06][%mdl 8192]} (31... Kg7 $1 $11 {and Black stays safe.} 32. f3 Rxd4 33. exd4 Nxf4) 32. Rc7+ {[%emt 0:00:00] White is clearly winning.} Ke8 {[%emt 0:00:32]} 33. Rxa7 {[%emt 0:00:00]} Ng7 {[%emt 0:03:20]} 34. Ra5 {[%emt 0:00:00]} Ne6 {[%emt 0:03:09]} 35. Rxd5 {[%emt 0:00:00]} Nxd4 {[%emt 0:00:16]} 36. Rxd4 {[%emt 0:00:00]} Re6 {[%emt 0:00:08]} 37. a4 {[%emt 0:00:00]} Rc6 {[%emt 0:00:24]} 38. b4 {[%emt 0:00:00] Weighted Error Value: White=0.24 (precise) /Black=0.65} 1-0

[Event "10th Floripa Open 2024"]
[Site "Florianopolis"]
[Date "2024.01.23"]
[Round "4.4"]
[White "Aranha Filho, Alvaro Z."]
[Black "Salinas Herrera, Pablo"]
[Result "1/2-1/2"]
[ECO "E16"]
[WhiteElo "2201"]
[BlackElo "2477"]
[Annotator "TA"]
[PlyCount "97"]
[EventDate "2024.01.10"]
[EventType "swiss"]
[EventCountry "BRA"]
[SourceTitle "playchess.com"]
[Source "ChessBase"]
[SourceQuality "1"]
[TimeControl "5400+30"]

{[%evp 16,97,12,0,7,0,20,0,22,0,25,24,35,23,46,41,52,22,83,35,89,99,93,110,122,93,93,45,44,19,14,17,19,26,42,34,39,35,22,17,54,0,0,0,51,37,37,38,29,0,0,0,7,0,85,92,92,92,158,115,108,0,100,103,87,33,33,33,35,37,22,22,108,38,39,0,90,72,100,86,91,0,82,0]} 1. d4 {[%emt 0:14:57]} d5 {[%emt 0:00:08]} 2. c4 {[%emt 0:00:06]} e6 {[%emt 0:00:33]} 3. Nf3 {[%emt 0:00:09]} Nf6 {[%emt 0:00:14]} 4. g3 {[%emt 0:00:05]} Bb4+ {[%emt 0:02:09]} 5. Nbd2 {[%emt 0:00:05]} O-O {[%emt 0:00:46]} 6. Bg2 {[%emt 0:00:04]} b6 {[%emt 0:01:49]} 7. cxd5 {[%emt 0:01:55]} exd5 {[%emt 0:00:19]} 8. O-O {[%emt 0:00:09]} Bb7 {[%emt 0:00:20]} 9. Ne5 {[%emt 0:00:42]} a5 {[%emt 0:04:29] E16: Queen's Indian: 4 g3 Bb7 5 Bg2 Bb4+.} 10. Qc2 {[%emt 0:04:36]} Be7 {[%emt 0:02:21]} 11. Rd1 {[%emt 0:05:05]} Qc8 {[%emt 0:08:11] The position is equal.} 12. Ndf3 {[%emt 0:03:07] [#]} Ne4 $146 {[%emt 0:02:00] Dodges Ng5} ({Predecessor:} 12... c5 13. Bg5 Na6 14. a3 Re8 15. Rac1 Ne4 16. Bxe7 Rxe7 17. dxc5 bxc5 18. Nd3 Qe8 {1-0 Cori Tello,D (2367)-Matnadze,A (2400) FIDE Grand Swiss (Women) 2023 (4)}) 13. Be3 {[%emt 0:03:02]} (13. h4 {feels hotter.} c5 14. Ng5 Nxg5 15. hxg5 Nc6 16. Nxc6 Qxc6 17. Bf4) 13... Bd6 {[%emt 0:10:40]} 14. Rac1 {[%emt 0:05:44]} Re8 {[%emt 0:02:21]} 15. Nd3 {[%emt 0:08:31]} Na6 {[%emt 0:22:56]} 16. a3 {[%emt 0:06:59] Prevents Nb4} Bf8 {[%emt 0:03:39]} (16... c5 $11) 17. Qb3 {[%emt 0:06:07]} (17. Nf4 $16) 17... Qe6 {[%emt 0:06:18]} (17... c5 $14) 18. Nf4 $16 {[%emt 0:03:33]} Qd6 {[%emt 0:00:11]} 19. Ne5 {[%emt 0:07:01]} Nf6 {[%emt 0:04:16]} 20. Nfd3 {[%emt 0:10:00] White has more active pieces.} h6 {[%emt 0:08:20]} 21. Rc2 {[%emt 0:03:16]} (21. h4 $16) 21... Rab8 $14 {[%emt 0:04:28][%cal Oc7c5]} 22. Qb5 {[%emt 0:04:36] Repels c5. Black must now prevent Nc6.} c5 $1 {[%emt 0:00:03]} 23. dxc5 {[%emt 0:01:05]} Nxc5 {[%emt 0:00:14]} 24. b4 {[%emt 0:01:47]} (24. Bxc5 $2 bxc5 25. Nf3 (25. Qxa5 $2 c4 $19) (25. Nxc5 $2 Ba8 $19) 25... c4 $17) 24... axb4 {[%emt 0:05:25]} 25. axb4 {[%emt 0:00:12]} Nxd3 {[%emt 0:00:04]} 26. Nxd3 {[%emt 0:00:22] And now Bf4 would win.} Rxe3 {[%emt 0:00:04]} 27. fxe3 {[%emt 0:00:57]} Ng4 {[%emt 0:00:04] [#]} 28. e4 {[%emt 0:04:58]} Ne3 $11 {[%emt 0:04:22]} 29. e5 {[%emt 0:00:18]} Qe6 {[%emt 0:00:03]} (29... Qg6 $11 30. Rdc1 Nxg2 31. Kxg2 Qe4+ 32. Kf2 d4) 30. Rdc1 $1 $14 {[%emt 0:00:34] Rc7 is the strong threat.} Nxc2 {[%emt 0:00:04]} 31. Rxc2 {[%emt 0:00:05]} Ra8 {[%emt 0:00:20]} 32. h3 {[%emt 0:00:56]} (32. Rc7 {looks sharper.} Ra1+ 33. Kf2 Qf5+ 34. Bf3) 32... Ra7 {[%emt 0:06:10]} 33. Kh2 {[%emt 0:00:53]} g5 {[%emt 0:00:09] Prevents Nf4.} 34. Bf3 {[%emt 0:02:13]} d4 {[%emt 0:03:16]} (34... Ba6 $11 {keeps the balance.} 35. Qxd5 Qxd5 36. Bxd5 Rd7) 35. Bxb7 $16 {[%emt 0:00:30]} Rxb7 {[%emt 0:00:01]} 36. Qc6 {[%emt 0:02:00]} Qe7 {[%emt 0:00:03]} ({Black should try} 36... Qxc6 37. Rxc6 Bg7) 37. Rc4 {[%emt 0:00:47] Black is weak on the light squares} Ra7 {[%emt 0:00:36]} 38. Rc2 {[%emt 0:01:11] Dodges Ra2} ({Reject} 38. Qxb6 $6 Ra2 39. Rxd4 (39. Qxd4 Rxe2+ 40. Nf2 Qe6 $15) 39... Rxe2+ 40. Kh1 Rxe5 41. Nxe5 Qxe5 $11) (38. Kg2 $16) 38... Qd8 {[%emt 0:01:00]} (38... Rb7 $1 $11 {remains equal.}) 39. Qe4 {[%emt 0:00:45]} Bg7 {[%emt 0:00:55]} 40. Qf5 {[%emt 0:00:06]} (40. Rc4 $16) 40... Rc7 $14 {[%emt 0:00:15]} 41. Rxc7 {[%emt 0:00:50]} Qxc7 {[%emt 0:00:03][%mdl 4096] Endgame KQB-KQN} 42. e6 {[%emt 0:00:10]} fxe6 {[%emt 0:00:13]} 43. Qxe6+ {[%emt 0:00:06]} Kh7 {[%emt 0:00:04]} (43... Qf7 $11 44. Qe4 (44. Qxb6 Qe8 $11) 44... Kf8) 44. Qf5+ {[%emt 0:00:09]} (44. b5 $16) 44... Kh8 {[%emt 0:00:03]} 45. Qe6 {[%emt 0:00:41]} ({Better is} 45. Qe4 $14) 45... Kh7 $1 $16 {[%emt 0:00:21]} 46. Qe4+ {[%emt 0:00:07]} Kh8 {[%emt 0:00:05]} 47. Qe8+ {[%emt 0:00:10]} Kh7 {[%emt 0:00:05]} 48. Qe4+ {[%emt 0:00:04]} Kh8 {[%emt 0:00:03]} 49. Qe8+ {[%emt 0:00:07] Weighted Error Value: White=0.21 (precise) /Black=0.21 (precise)} (49. h4 $16) 1/2-1/2

[Event "10th Floripa Open 2024"]
[Site "Florianopolis"]
[Date "2024.01.23"]
[Round "4.5"]
[White "Galego, Luis"]
[Black "Rodrigues, Edgar"]
[Result "1/2-1/2"]
[ECO "C01"]
[WhiteElo "2468"]
[BlackElo "2233"]
[Annotator "TA"]
[PlyCount "114"]
[EventDate "2024.01.10"]
[EventType "swiss"]
[EventCountry "BRA"]
[SourceTitle "playchess.com"]
[Source "ChessBase"]
[SourceQuality "1"]
[TimeControl "5400+30"]

{[%evp 9,114,6,9,-18,17,13,2,11,8,4,0,16,10,0,13,13,25,8,31,25,51,47,76,15,12,13,16,0,0,0,0,0,-9,-19,-12,-54,-36,-38,-37,-72,-49,-140,-13,-212,-198,-258,-270,-258,-150,-152,-146,-414,-405,-495,-491,-473,-459,-463,-427,-784,-765,-741,-632,-787,-685,-635,-495,-452,0,0,0,0,0,0,0,0,0,0,0,-45,-29,-43,-8,-8,17,16,10,9,12,8,8,8,8,0,0,0,0,0,0,0,0,0,0,0,0,0,25]} 1. e4 {[%emt 0:00:45]} e6 {[%emt 0:00:09]} 2. d4 {[%emt 0:00:32]} d5 {[%emt 0:00:07]} 3. exd5 {[%emt 0:00:56]} exd5 {[%emt 0:00:08]} 4. Nf3 {[%emt 0:00:03]} Nf6 {[%emt 0:02:33]} 5. h3 {[%emt 0:00:36]} Bd6 {[%emt 0:00:22]} 6. c4 {[%emt 0:00:05] C01: French: Exchange Variation.} Bb4+ {[%emt 0:02:42]} 7. Nc3 {[%emt 0:01:38]} O-O {[%emt 0:02:42]} 8. Bd3 {[%emt 0:08:54]} dxc4 {[%emt 0:05:48]} 9. Bxc4 {[%emt 0:00:51]} Qe7+ {[%emt 0:07:13]} 10. Be3 {[%emt 0:03:17] [#]} Be6 $146 {[%emt 0:00:57]} ({Predecessor:} 10... Nbd7 11. O-O h6 12. Re1 Qd8 13. Qd3 Nb6 14. Bb3 c6 15. Ne5 Nbd5 16. g4 g5 17. Bc2 Be6 {0-1 Safarik,J (1960)-Kolomaznikova,B (1947) CZE-chT U20 final-A 0910 2010 (11.3)}) 11. Qb3 {[%emt 0:06:00]} Bxc4 {[%emt 0:00:58]} (11... Nc6 $5 {[%cal Rc6a5]} 12. Bxe6 Qxe6 $11) 12. Qxc4 {[%emt 0:00:03]} Nbd7 {[%emt 0:03:55]} 13. O-O {[%emt 0:00:40]} Nb6 {[%emt 0:00:20]} 14. Qb3 {[%emt 0:00:04]} Bxc3 {[%emt 0:05:20]} 15. bxc3 {[%emt 0:00:24]} Nfd5 {[%emt 0:08:26]} 16. c4 {[%emt 0:22:56]} (16. Bd2 $16) 16... Nxe3 $11 {[%emt 0:00:09]} 17. fxe3 {[%emt 0:00:02]} c5 {[%emt 0:04:25]} 18. a4 {[%emt 0:02:55]} Rae8 {[%emt 0:03:22]} 19. a5 {[%emt 0:03:49]} Nc8 {[%emt 0:00:55]} 20. Rfe1 {[%emt 0:01:15]} Nd6 {[%emt 0:04:24] Wards off Qb5} 21. Rac1 {[%emt 0:18:51]} Qc7 {[%emt 0:02:39]} 22. Qa2 {[%emt 0:03:05]} Re7 {[%emt 0:06:22]} 23. Qa3 {[%emt 0:05:57]} Ne4 {[%emt 0:05:33]} (23... Rc8 {simplifies} 24. d5 Rce8 25. Nd2 Re5) 24. Rcd1 {[%emt 0:02:51]} Qg3 {[%emt 0:02:21] Strongly threatening ...Nf2.} 25. dxc5 {[%emt 0:06:44]} (25. Rf1 $15) 25... Nf2 {[%emt 0:17:17]} (25... Qf2+ $17 26. Kh2 Re6) 26. Rd2 $2 {[%emt 0:01:27]} (26. c6 $1 $11) 26... Nxh3+ $19 {[%emt 0:00:09]} 27. Kf1 {[%emt 0:00:00] [#]} (27. Kh1 $142) 27... Re6 $1 {[%emt 0:00:49][%cal Oe6f6]} 28. e4 {[%emt 0:06:31]} Rf6 {[%emt 0:02:46]} (28... Ng5 $19 29. Qe3 Nxe4) 29. e5 $17 {[%emt 0:01:04]} Rf4 $36 {[%emt 0:00:45][%cal Bf6f4,Bf4c4,Bc4c1,Bc1a1][%mdl 2080] Black is in control.} 30. Re3 $2 {[%emt 0:01:51][%mdl 8192]} (30. Qe3 $17) 30... Qh2 $19 {[%emt 0:00:48]} 31. Ke2 {[%emt 0:01:12]} Qxg2+ {[%emt 0:00:20]} 32. Kd1 {[%emt 0:00:00]} Qf1+ {[%emt 0:00:30]} ({Don't blunder} 32... Qh1+ $2 33. Kc2 Rxc4+ 34. Kb2 $19) 33. Kc2 {[%emt 0:00:21]} Rxc4+ {[%emt 0:00:55]} (33... Qxc4+ $2 {perishes.} 34. Kb2 $19) 34. Kb3 {[%emt 0:00:04]} (34. Kb2 $142 Nf4 35. Re1) 34... Rc1 {[%emt 0:01:16] Hoping for ...Qb5+.} 35. Nd4 {[%emt 0:01:18] Repels Qb5+} Ra1 {[%emt 0:01:05]} 36. Qb4 {[%emt 0:00:31]} Rb1+ {[%emt 0:00:29]} 37. Rb2 {[%emt 0:00:07]} Qd1+ {[%emt 0:00:46]} 38. Nc2 {[%emt 0:00:05] [#]} Nf4 {[%emt 0:01:04]} 39. Qxf4 $11 {[%emt 0:00:43] Black must now prevent Qc4.} Qd5+ {[%emt 0:00:07]} 40. Ka3 {[%emt 0:00:13]} Qxc5+ {[%emt 0:00:39]} 41. Qb4 {[%emt 0:00:06]} Ra1+ {[%emt 0:00:29][%mdl 64] Deflection} 42. Nxa1 {[%emt 0:00:18]} Qxe3+ {[%emt 0:00:06]} 43. Nb3 {[%emt 0:00:12]} b6 {[%emt 0:01:50]} 44. Qe7 {[%emt 0:01:59] aiming for Rd2.} bxa5 {[%emt 0:00:32]} 45. Rd2 {[%emt 0:00:06] Threatens to win with Rd8.} Qb6 {[%emt 0:00:45] Wards off Rd8} (45... h5 {feels hotter.} 46. Rd7 Qf3 47. e6 a4) 46. Rd7 {[%emt 0:00:19] The position is equal.} Qb4+ {[%emt 0:02:44]} 47. Qxb4 {[%emt 0:00:07]} axb4+ {[%emt 0:00:04]} 48. Kxb4 {[%emt 0:00:01][%mdl 4096] Endgame KRN-KR} Ra8 {[%emt 0:00:28]} 49. Nd4 {[%emt 0:00:24]} a5+ {[%emt 0:00:28]} 50. Ka4 {[%emt 0:00:09]} g6 {[%emt 0:02:13]} 51. e6 {[%emt 0:00:15]} fxe6 {[%emt 0:00:11]} 52. Nxe6 {[%emt 0:00:02]} Re8 {[%emt 0:00:22]} 53. Rd6 {[%emt 0:02:19]} Ra8 {[%emt 0:01:52]} 54. Rd7 {[%emt 0:00:11]} Re8 {[%emt 0:00:16]} 55. Rd6 {[%emt 0:00:01]} h6 {[%emt 0:01:04]} 56. Kxa5 {[%emt 0:00:21]} Kf7 {[%emt 0:00:25]} 57. Nd8+ {[%emt 0:03:30]} Kg8 {[%emt 0:03:36] And White is the lucky defender.   Weighted Error Value: White=0.51/Black=0.36} 1/2-1/2